bitfinex/quotes_SOLUSD_20250721
["timestamp","ask_amount","ask_price","bid_price","bid_amount"]
[1753127375658,10.77959021,193.45,193.42,26.0]
[1753127375960,23.70078397,193.49,193.42,26.0]
[1753127375961,0.6460616,193.48,193.43,37.96]
[1753127376261,10.77959021,193.45,193.43,37.96]
[1753127377658,10.77959021,193.45,193.41,5.17011629]
[1753127377659,16.78468397,193.43,193.37,26.0]
[1753127377874,10.77959021,193.4,193.38,37.94]
[1753127378368,10.77959021,193.39,193.38,37.94]
[1753127378755,1.30626202,193.42,193.38,37.94]
[1753127378756,16.78468397,193.41,193.38,37.94]
[1753127379158,16.78468397,193.41,193.36,0.03]
[1753127379159,16.78468397,193.38,193.36,0.03]
[1753127379359,27.56427418,193.37,193.36,0.03]
[1753127379983,28.22427418,193.37,193.36,0.03]
[1753127380382,27.56427418,193.37,193.36,0.03]
[1753127380554,10.77959021,193.39,193.36,0.03]
[1753127380759,0.64626202,193.42,193.36,0.03]
[1753127380760,16.78468397,193.43,193.37,38.6]
[1753127381079,10.77959021,193.38,193.37,37.9]
[1753127381882,10.77959021,193.39,193.37,37.9]
[1753127382663,10.77959021,193.4,193.38,0.7]
[1753127382891,5.81570666,193.45,193.39,0.7]
[1753127382892,10.77959021,193.42,193.39,0.7]
[1753127383065,10.77959021,193.43,193.4,38.56]
[1753127383676,10.77959021,193.42,193.4,37.86]
[1753127383979,10.77959021,193.41,193.4,37.86]
[1753127384185,21.95430242,193.44,193.4,37.86]
[1753127384365,16.78468397,193.44,193.4,37.86]
[1753127384565,10.77959021,193.42,193.4,37.86]
[1753127384781,10.77959021,193.44,193.4,43.0306125]
[1753127384987,10.77959021,193.44,193.41,0.7]
[1753127385787,10.77959021,193.44,193.4,43.0306125]
[1753127385964,10.77959021,193.44,193.4,43.7306125]
[1753127387768,10.77959021,193.41,193.36,5.20165045]
[1753127387973,1.3062286,193.43,193.39,26.0]
[1753127388173,10.77959021,193.4,193.37,37.84]
[1753127388497,16.78468397,193.37,193.36,0.03]
[1753127388682,28.2107033,193.37,193.36,0.03]
[1753127388991,27.56427418,193.37,193.36,0.03]
[1753127389572,33.39570718,193.37,193.36,0.03]
[1753127390296,34.0421363,193.37,193.36,0.03]
[1753127390803,33.3821363,193.37,193.36,0.03]
[1753127391176,10.77959021,193.37,193.36,0.03]
[1753127391504,15.95102321,193.37,193.36,0.03]
[1753127391667,16.16102321,193.37,193.36,0.03]
[1753127391870,15.95102321,193.37,193.36,0.03]
[1753127392198,10.77959021,193.37,193.36,0.03]
[1753127393090,11.42601933,193.37,193.36,0.03]
[1753127393474,16.59745233,193.37,193.36,0.03]
[1753127393676,16.80745233,193.37,193.36,0.03]
[1753127394095,33.5921363,193.37,193.36,0.03]
[1753127396098,22.60254609,193.37,193.36,0.03]
[1753127396420,28.2107033,193.37,193.36,0.03]
[1753127397412,33.3821363,193.37,193.36,0.03]
[1753127398312,10.77959021,193.37,193.36,0.73]
[1753127398806,10.77959021,193.37,193.36,0.03]
[1753127400188,5.81703613,193.4,193.36,0.03]
[1753127400511,16.78468397,193.39,193.36,0.03]
[1753127400691,0.64636227,193.39,193.36,0.03]
[1753127400892,10.77959021,193.37,193.36,0.03]
[1753127401091,27.56427418,193.37,193.36,0.03]
[1753127401320,27.77427418,193.37,193.36,0.03]
[1753127401501,32.73570718,193.37,193.36,0.03]
[1753127401699,32.94570718,193.37,193.36,0.03]
[1753127402001,28.4207033,193.37,193.36,0.03]
[1753127402198,10.77959021,193.37,193.36,0.03]
[1753127402412,16.78468397,193.41,193.36,0.75]
[1753127402627,10.77959021,193.38,193.37,0.72]
[1753127403313,10.77959021,193.38,193.36,0.03]
[1753127403505,11.63601933,193.37,193.36,0.03]
[1753127403812,11.42601933,193.37,193.36,0.03]
[1753127404229,28.4207033,193.37,193.33,0.03]
[1753127404436,64.34386439,193.34,193.33,0.03]
[1753127404736,64.34386439,193.34,193.32,0.03]
[1753127404737,38.34386439,193.33,193.32,0.03]
[1753127404898,38.55386439,193.33,193.32,0.03]
[1753127405500,32.94677715,193.33,193.32,0.03]
[1753127405907,32.73677715,193.33,193.32,0.03]
[1753127406697,33.38677715,193.33,193.32,0.03]
[1753127406893,32.73677715,193.33,193.32,0.03]
[1753127407094,33.38677715,193.33,193.32,0.03]
[1753127408002,95.01762479,193.33,193.23,0.72]
[1753127408204,27.56427418,193.29,193.23,0.72]
[1753127408399,27.56427418,193.29,193.21,75.1]
[1753127408400,27.56427418,193.29,193.21,0.72]
[1753127408611,28.21427418,193.29,193.21,0.72]
[1753127408818,28.86097085,193.29,193.21,0.72]
[1753127409227,28.86097085,193.29,193.19,32.0738]
[1753127409538,28.86097085,193.29,193.18,43.81646182]
[1753127409940,34.03454423,193.29,193.19,5.17623941]
[1753127410427,34.53454423,193.29,193.19,5.89623941]
[1753127410633,28.21097085,193.29,193.24,0.72]
[1753127410818,10.77959021,193.29,193.21,10.77959021]
[1753127411011,10.77959021,193.29,193.26,0.72]
[1753127412014,10.77959021,193.29,193.23,5.89517897]
[1753127412337,15.95316359,193.29,193.23,5.89517897]
[1753127412533,10.77959021,193.29,193.24,5.17490758]
[1753127412709,10.77959021,193.29,193.2,36.77959021]
[1753127412710,10.77959021,193.29,193.25,0.72]
[1753127412910,10.77959021,193.29,193.21,10.77959021]
[1753127412911,10.77959021,193.29,193.28,0.75]
[1753127413108,10.77959021,193.29,193.28,0.03]
[1753127413329,34.03454423,193.29,193.28,0.03]
[1753127414018,33.38454423,193.29,193.28,0.03]
[1753127415038,28.21097085,193.29,193.28,0.03]
[1753127415244,26.0,193.34,193.28,0.03]
[1753127415245,17.43124684,193.33,193.28,0.03]
[1753127415540,10.77959021,193.29,193.28,0.75]
[1753127415716,0.65,193.35,193.29,0.72]
[1753127415717,10.77959021,193.3,193.29,0.72]
[1753127415916,16.78468397,193.35,193.29,5.89356019]
[1753127415917,10.77959021,193.31,193.29,5.89356019]
[1753127416124,0.64652943,193.34,193.28,0.03]
[1753127416125,10.77959021,193.3,193.28,0.03]
[1753127416322,10.77959021,193.29,193.28,0.03]
[1753127416633,10.77959021,193.31,193.28,5.92384105]
[1753127416812,0.64632885,193.4,193.31,26.0]
[1753127417017,10.77959021,193.39,193.33,10.77959021]
[1753127417229,10.77959021,193.37,193.34,0.72]
[1753127417533,10.77959021,193.35,193.31,26.72]
[1753127417834,16.78468397,193.37,193.29,37.88]
[1753127418039,10.77959021,193.31,193.29,43.05340225]
[1753127418226,10.77959021,193.31,193.3,0.72]
[1753127419421,10.77959021,193.31,193.28,0.03]
[1753127419731,10.77959021,193.29,193.28,0.03]
[1753127421136,10.77959021,193.29,193.28,0.75]
[1753127421323,10.77959021,193.3,193.28,0.75]
[1753127421541,10.77959021,193.29,193.28,0.03]
[1753127422822,10.77959021,193.29,193.28,0.75]
[1753127424649,0.06,193.31,193.28,5.92384105]
[1753127424849,0.06,193.31,193.29,0.72]
[1753127425157,0.06,193.31,193.29,0.97945333]
[1753127425345,0.06,193.31,193.3,0.72]
[1753127425918,0.06,193.31,193.3,38.58]
[1753127426565,10.83959021,193.31,193.3,37.86]
[1753127426946,10.83959021,193.31,193.3,38.58]
[1753127427265,0.06,193.31,193.3,38.58]
[1753127427437,10.83959021,193.31,193.3,37.86]
[1753127427636,0.06,193.31,193.3,37.86]
[1753127427847,10.83959021,193.31,193.3,37.86]
[1753127428659,10.83959021,193.31,193.3,38.58]
[1753127428838,10.83959021,193.31,193.3,0.72]
[1753127429234,0.06,193.31,193.3,0.72]
[1753127429465,0.06,193.31,193.29,37.86]
[1753127429634,10.83959021,193.31,193.29,37.86]
[1753127429836,10.83959021,193.31,193.29,38.58]
[1753127430181,10.77959021,193.3,193.29,38.58]
[1753127430344,10.77959021,193.3,193.29,0.72]
[1753127430536,0.06,193.31,193.29,0.72]
[1753127430749,0.06,193.31,193.3,0.72]
[1753127431966,10.83959021,193.31,193.3,0.72]
[1753127432461,10.83959021,193.31,193.28,0.03]
[1753127432671,10.77959021,193.29,193.28,0.03]
[1753127432862,10.77959021,193.29,193.28,37.89]
[1753127433872,10.77959021,193.3,193.28,43.72384105]
[1753127434088,10.77959021,193.3,193.29,0.66]
[1753127434463,0.06,193.31,193.29,43.69357338]
[1753127434664,10.83959021,193.31,193.29,37.86]
[1753127435073,0.06,193.31,193.29,43.0335457]
[1753127435367,10.83959021,193.31,193.3,0.66]
[1753127436265,10.83959021,193.31,193.29,37.86]
[1753127436590,10.77959021,193.3,193.29,37.86]
[1753127437569,10.77959021,193.3,193.28,0.03]
[1753127437764,10.77959021,193.3,193.29,37.86]
[1753127438162,10.77959021,193.3,193.28,0.69]
[1753127438163,0.06,193.31,193.28,0.03]
[1753127438468,10.83959021,193.31,193.29,0.66]
[1753127438672,10.77959021,193.3,193.29,0.66]
[1753127438889,0.06,193.31,193.29,0.66]
[1753127439068,0.06,193.31,193.28,5.20382825]
[1753127439069,10.83959021,193.31,193.3,38.5]
[1753127439893,0.06,193.31,193.3,37.84]
[1753127440071,0.06,193.31,193.3,38.5]
[1753127440266,0.70636227,193.39,193.3,49.53900336]
[1753127440483,0.06,193.39,193.35,36.77959021]
[1753127440681,0.06,193.39,193.37,10.77959021]
[1753127440869,0.06,193.39,193.37,11.03850846]
[1753127441180,0.06,193.39,193.38,0.66]
[1753127442479,0.06,193.39,193.38,5.83116558]
[1753127443212,0.06,193.39,193.35,26.0]
[1753127443213,10.83959021,193.39,193.35,0.66]
[1753127443383,10.77959021,193.36,193.32,0.66]
[1753127443704,10.77959021,193.35,193.31,26.0]
[1753127443886,10.77959021,193.32,193.31,37.84]
[1753127444070,10.77959021,193.32,193.29,0.03]
[1753127444266,10.77959021,193.32,193.3,37.84]
[1753127444499,10.77959021,193.31,193.3,37.84]
[1753127445081,0.68,193.37,193.3,38.5]
[1753127445082,10.77959021,193.32,193.3,38.5]
[1753127445680,10.77959021,193.31,193.3,37.84]
[1753127446603,10.77959021,193.31,193.29,0.03]
[1753127446779,10.77959021,193.3,193.29,0.03]
[1753127446973,28.24427418,193.3,193.29,0.03]
[1753127449013,27.56427418,193.3,193.29,0.03]
[1753127449182,33.41757992,193.3,193.29,0.03]
[1753127449383,16.78468397,193.26,193.2,0.03]
[1753127449591,10.77959021,193.21,193.2,0.03]
[1753127452091,0.64689747,193.23,193.2,0.03]
[1753127452295,10.77959021,193.22,193.2,0.69]
[1753127452492,28.24427418,193.21,193.2,0.03]
[1753127452732,39.67082883,193.21,193.2,0.03]
[1753127453000,34.06695416,193.21,193.2,0.03]
[1753127453698,28.21123862,193.21,193.2,0.03]
[1753127454177,10.77959021,193.21,193.2,0.03]
[1753127454378,11.42655465,193.21,193.2,0.03]
[1753127455275,10.77959021,193.21,193.2,0.03]
[1753127456102,16.78468397,193.2,193.16,0.1]
[1753127456404,10.77959021,193.17,193.16,0.1]
[1753127459795,10.77959021,193.17,193.16,0.76]
[1753127460086,0.64696444,193.21,193.16,0.76]
[1753127460289,16.78468397,193.26,193.17,11.69982022]
[1753127460501,0.64679706,193.26,193.18,49.27959021]
[1753127460708,10.77959021,193.3,193.24,10.77959021]
[1753127461000,10.77959021,193.32,193.26,10.77959021]
[1753127461180,6.55726313,193.39,193.28,10.77959021]
[1753127461388,10.77959021,193.37,193.31,10.77959021]
[1753127461692,10.83959021,193.39,193.33,10.77959021]
[1753127461889,10.83959021,193.39,193.34,0.69]
[1753127462194,0.06,193.39,193.35,0.69]
[1753127462413,0.06,193.39,193.36,0.69]
[1753127462608,10.77959021,193.37,193.33,26.0]
[1753127462786,10.77959021,193.36,193.33,26.0]
[1753127462982,10.77959021,193.36,193.33,26.69]
[1753127463409,10.77959021,193.35,193.32,37.84]
[1753127463578,10.77959021,193.33,193.29,38.53]
[1753127463779,10.77959021,193.3,193.29,37.84]
[1753127464016,10.77959021,193.3,193.25,37.84]
[1753127464210,10.77959021,193.27,193.25,43.0146373]
[1753127464420,10.77959021,193.26,193.25,37.84]
[1753127465288,16.28638139,193.26,193.25,37.84]
[1753127465501,16.28638139,193.26,193.23,0.69]
[1753127465697,16.28638139,193.24,193.2,11.9266409]
[1753127465907,0.64673013,193.28,193.2,43.7057409]
[1753127465908,16.28638139,193.22,193.2,43.7057409]
[1753127466105,16.28638139,193.22,193.2,38.53]
[1753127466291,16.28638139,193.21,193.2,37.84]
[1753127466817,16.28638139,193.21,193.2,38.53]
[1753127467006,0.64676359,193.27,193.2,43.70585678]
[1753127467320,16.28638139,193.25,193.2,59.99223817]
[1753127467540,16.28638139,193.27,193.22,5.17544767]
[1753127467890,16.28638139,193.27,193.23,0.69]
[1753127468211,0.64656287,193.33,193.25,16.28638139]
[1753127468513,16.28638139,193.31,193.26,38.53]
[1753127468685,16.28638139,193.31,193.27,0.69]
[1753127469090,16.28638139,193.31,193.28,0.69]
[1753127469504,42.78468397,193.36,193.28,0.69]
[1753127469505,0.64649599,193.35,193.3,5.17330574]
[1753127469704,16.28638139,193.32,193.26,54.38590174]
[1753127469910,16.28638139,193.29,193.28,26.0]
[1753127470711,16.28638139,193.29,193.26,37.84]
[1753127470892,16.28638139,193.27,193.26,37.84]
[1753127471094,1.34656287,193.33,193.26,38.53]
[1753127471296,0.64659631,193.32,193.26,43.70425064]
[1753127471507,21.95671167,193.35,193.26,43.70425064]
[1753127471508,16.28638139,193.31,193.26,43.70425064]
[1753127471716,16.28638139,193.31,193.27,0.69]
[1753127471932,16.28638139,193.31,193.28,0.69]
[1753127472308,16.34638139,193.31,193.28,0.69]
[1753127472507,0.06,193.31,193.29,0.69]
[1753127472823,16.28638139,193.3,193.26,43.70425064]
[1753127473007,16.28638139,193.3,193.27,0.69]
[1753127473408,16.28638139,193.29,193.26,37.84]
[1753127473609,16.28638139,193.28,193.26,37.84]
[1753127473825,16.28638139,193.27,193.26,37.84]
[1753127474009,16.28638139,193.28,193.25,37.82]
[1753127474536,16.28638139,193.28,193.25,38.51]
[1753127475326,16.28638139,193.28,193.25,43.68456916]
[1753127475533,5.87968993,193.31,193.25,37.82]
[1753127475534,16.28638139,193.26,193.25,37.82]
[1753127475720,16.28638139,193.28,193.25,43.68461574]
[1753127476030,5.87974576,193.31,193.26,0.69]
[1753127476322,16.28638139,193.29,193.26,0.69]
[1753127476926,16.28638139,193.29,193.26,5.86436285]
[1753127477133,16.28638139,193.29,193.25,37.82]
[1753127477312,16.28638139,193.28,193.25,42.9946285]
[1753127477511,16.28638139,193.28,193.25,43.6846285]
[1753127477709,5.87976404,193.31,193.3,26.0]
[1753127477710,0.06,193.31,193.3,26.0]
[1753127477906,16.34638139,193.39,193.3,86.85768139]
[1753127478117,0.06,193.39,193.34,16.28638139]
[1753127478309,0.06,193.39,193.36,26.0]
[1753127478508,0.06,193.39,193.38,42.28638139]
[1753127478717,0.2,193.5,193.4,5.17063081]
[1753127479014,0.2,193.5,193.45,26.0]
[1753127479210,0.84599483,193.5,193.46,37.82]
[1753127479441,0.2,193.5,193.46,54.10638139]
[1753127479811,0.2,193.5,193.47,16.97638139]
[1753127480030,0.2,193.5,193.49,26.0]
[1753127480239,0.2,193.51,193.49,54.36452458]
[1753127480413,0.2,193.51,193.5,16.97638139]
[1753127480916,0.2,193.51,193.5,22.14434004]
[1753127481841,0.2,193.51,193.5,26.0]
[1753127482037,16.48638139,193.51,193.49,26.0]
[1753127482224,0.2,193.51,193.5,37.8]
[1753127482420,0.2,193.51,193.5,54.77638139]
[1753127482818,0.2,193.59,193.53,31.16714256]
[1753127483023,0.2,193.59,193.54,38.05772927]
[1753127483234,0.2,193.59,193.54,37.8]
[1753127483539,16.28638139,193.57,193.54,37.8]
[1753127483729,0.7,193.58,193.54,37.8]
[1753127483932,16.28638139,193.58,193.54,37.8]
[1753127484433,0.2,193.59,193.55,17.23409735]
[1753127484737,0.2,193.59,193.56,16.28638139]
[1753127484941,0.2,193.59,193.57,37.78]
[1753127487427,0.2,193.59,193.57,38.47]
[1753127487749,0.2,193.59,193.58,16.97638139]
[1753127488049,0.06,193.61,193.6,26.0]
[1753127488726,0.06,193.61,193.54,0.25758251]
[1753127488727,17.04638139,193.61,193.54,0.25758251]
[1753127488931,16.28638139,193.59,193.56,26.0]
[1753127489147,0.7,193.6,193.56,26.0]
[1753127489318,22.15167467,193.6,193.56,26.0]
[1753127489518,21.45167467,193.6,193.56,26.0]
[1753127489946,21.45167467,193.6,193.49,0.94766236]
[1753127489947,16.28638139,193.57,193.49,0.94766236]
[1753127490147,16.28638139,193.55,193.51,37.76]
[1753127490447,16.28638139,193.53,193.48,37.87]
[1753127490739,16.28638139,193.53,193.52,37.76]
[1753127492223,5.84582291,193.58,193.52,37.76]
[1753127492424,16.28638139,193.53,193.52,37.76]
[1753127492721,0.68,193.53,193.52,37.76]
[1753127492944,16.96638139,193.53,193.52,37.76]
[1753127493326,22.13353893,193.53,193.52,37.76]
[1753127494023,18.11044519,193.57,193.52,37.76]
[1753127494231,16.28638139,193.56,193.52,37.76]
[1753127494741,16.28638139,193.53,193.5,0.3113]
[1753127494945,16.28638139,193.51,193.5,38.0713]
[1753127495270,22.13407298,193.51,193.5,38.0713]
[1753127495429,38.91875695,193.51,193.5,0.3113]
[1753127496469,22.13407298,193.51,193.5,0.3113]
[1753127496750,38.91875695,193.51,193.5,0.3113]
[1753127496950,16.78468397,193.5,193.43,37.76]
[1753127497161,16.28638139,193.44,193.42,37.76]
[1753127497337,39.56712283,193.43,193.42,37.76]
[1753127497668,39.56712283,193.43,193.39,37.76]
[1753127497832,16.28638139,193.4,193.39,37.76]
[1753127498431,16.28638139,193.42,193.39,37.76]
[1753127498841,16.28638139,193.41,193.39,37.76]
[1753127499941,1.32616179,193.45,193.39,37.76]
[1753127499942,16.28638139,193.42,193.39,37.76]
[1753127500335,16.28638139,193.44,193.4,0.65]
[1753127500530,16.28638139,193.45,193.41,0.65]
[1753127500951,16.28638139,193.44,193.41,0.65]
[1753127501153,16.28638139,193.44,193.39,37.76]
[1753127501358,16.28638139,193.43,193.39,38.41]
[1753127502134,16.28638139,193.43,193.39,43.58089019]
[1753127502341,16.28638139,193.44,193.4,0.65]
[1753127502551,0.6460616,193.48,193.42,26.0]
[1753127502759,16.28638139,193.5,193.44,16.28638139]
[1753127503169,16.28638139,193.47,193.43,37.76]
[1753127503457,16.28638139,193.46,193.43,37.76]
[1753127503658,16.28638139,193.46,193.44,37.76]
[1753127503868,21.45567578,193.45,193.44,37.76]
[1753127504246,0.64599483,193.5,193.44,37.76]
[1753127504459,13.59922898,193.51,193.44,37.76]
[1753127504460,16.28638139,193.48,193.44,37.76]
[1753127505164,10.77324397,193.45,193.42,37.76]
[1753127505338,5.16822574,193.49,193.34,38.7276]
[1753127505339,16.78468397,193.42,193.34,37.18]
[1753127505543,10.77324397,193.37,193.35,37.76]
[1753127506359,10.77324397,193.37,193.31,16.596177]
[1753127506360,5.17151707,193.37,193.31,0.65]
[1753127506539,10.77324397,193.36,193.32,37.76]
[1753127507261,16.2696666,193.34,193.32,37.76]
[1753127507473,16.2696666,193.33,193.32,37.76]
[1753127508246,21.44216957,193.33,193.32,37.76]
[1753127508442,22.12216957,193.33,193.32,37.76]
[1753127509280,22.12216957,193.33,193.26,16.2696666]
[1753127509453,16.2696666,193.31,193.29,26.0]
[1753127509656,16.2696666,193.3,193.29,26.0]
[1753127510056,16.2696666,193.3,193.27,37.76]
[1753127510476,16.2696666,193.31,193.27,37.76]
[1753127510674,16.2696666,193.3,193.27,37.76]
[1753127510987,16.2696666,193.29,193.27,37.76]
[1753127511298,16.2696666,193.28,193.27,37.76]
[1753127512291,22.12350765,193.28,193.25,0.03]
[1753127512461,16.2696666,193.26,193.25,37.81]
[1753127512969,33.73435057,193.26,193.25,0.03]
[1753127514185,38.90872705,193.26,193.25,0.03]
[1753127514357,16.78468397,193.25,193.21,0.03]
[1753127514548,0.646864,193.24,193.21,0.03]
[1753127514957,16.2696666,193.22,193.21,0.03]
[1753127515181,0.64666321,193.3,193.22,0.65]
[1753127515349,16.2696666,193.29,193.23,80.0496666]
[1753127515555,16.2696666,193.26,193.23,63.78]
[1753127515749,16.2696666,193.26,193.23,26.0]
[1753127515953,0.68,193.26,193.24,37.78]
[1753127516155,5.17464424,193.25,193.24,37.78]
[1753127516566,6.50147477,193.25,193.22,37.78]
[1753127516768,17.46468397,193.24,193.22,37.78]
[1753127516986,0.64689747,193.23,193.22,37.78]
[1753127517196,17.59656407,193.23,193.22,37.78]
[1753127517787,17.59656407,193.23,193.21,0.03]
[1753127517987,16.9496666,193.22,193.21,0.03]
[1753127518294,22.12511427,193.22,193.21,0.03]
[1753127519372,21.44511427,193.22,193.21,0.03]
[1753127519987,5.17508578,193.24,193.21,0.03]
[1753127520192,16.2696666,193.22,193.21,0.03]
[1753127521286,0.64676359,193.27,193.21,43.0096666]
[1753127521492,16.2696666,193.31,193.22,7.357]
[1753127521700,16.2696666,193.27,193.22,7.357]
[1753127521889,16.2696666,193.27,193.23,38.49]
[1753127522286,16.2696666,193.25,193.22,6.647]
[1753127522491,16.2696666,193.24,193.23,37.78]
[1753127522692,16.2696666,193.25,193.23,37.78]
[1753127522881,16.2696666,193.26,193.23,37.78]
[1753127523202,16.2696666,193.25,193.23,37.78]
[1753127524002,16.2696666,193.24,193.23,37.78]
[1753127524176,16.2696666,193.24,193.21,0.03]
[1753127524381,0.7,193.24,193.22,37.78]
[1753127524607,0.7,193.24,193.21,0.03]
[1753127524608,16.9696666,193.23,193.21,0.03]
[1753127524900,16.2696666,193.22,193.21,0.03]
[1753127526883,16.9696666,193.22,193.21,0.03]
[1753127527094,33.75435057,193.22,193.21,0.03]
[1753127527301,16.78468397,193.21,193.17,0.03]
[1753127527503,10.80230198,193.18,193.17,0.03]
[1753127528297,11.50230198,193.18,193.17,0.03]
[1753127529013,16.67882128,193.18,193.17,0.03]
[1753127530102,11.50230198,193.18,193.17,0.03]
[1753127530411,10.80230198,193.19,193.17,0.03]
[1753127530614,10.80230198,193.18,193.17,0.03]
[1753127530990,11.50230198,193.18,193.17,0.03]
[1753127532395,16.67882128,193.18,193.17,0.03]
[1753127532608,11.50230198,193.18,193.17,0.03]
[1753127532791,10.80230198,193.18,193.17,0.03]
[1753127532985,0.64703141,193.19,193.17,0.03]
[1753127533186,0.7,193.21,193.17,0.03]
[1753127533187,10.80230198,193.18,193.17,0.03]
[1753127534395,0.64699792,193.2,193.17,0.74]
[1753127534595,10.80230198,193.19,193.17,0.74]
[1753127534796,10.80230198,193.18,193.17,0.03]
[1753127535505,0.7,193.24,193.17,0.74]
[1753127535707,10.80230198,193.2,193.17,0.74]
[1753127536027,10.80230198,193.2,193.17,0.03]
[1753127536191,10.80230198,193.19,193.17,0.03]
[1753127536390,0.64689747,193.23,193.17,0.74]
[1753127536608,10.80230198,193.2,193.17,0.74]
[1753127536834,10.80230198,193.2,193.17,1.0506]
[1753127536987,10.80230198,193.2,193.18,0.71]
[1753127537186,10.80230198,193.23,193.19,38.51]
[1753127537406,10.80230198,193.24,193.2,0.71]
[1753127537617,10.80230198,193.24,193.19,37.8]
[1753127537618,10.80230198,193.21,193.19,37.8]
[1753127538113,10.80230198,193.23,193.2,0.71]
[1753127538692,10.80230198,193.21,193.18,31.17647863]
[1753127538890,10.80230198,193.21,193.19,37.8]
[1753127539102,0.7,193.23,193.17,0.3406]
[1753127539103,11.50230198,193.2,193.17,0.3406]
[1753127539309,10.80230198,193.21,193.18,0.71]
[1753127539644,10.80230198,193.22,193.19,0.71]
[1753127539803,0.70683053,193.25,193.2,37.8]
[1753127540009,10.80230198,193.24,193.21,0.71]
[1753127540227,0.06,193.25,193.2,37.8]
[1753127540537,10.86230198,193.25,193.21,0.71]
[1753127540745,10.80230198,193.24,193.22,5.17544767]
[1753127541039,10.80230198,193.23,193.2,37.8]
[1753127541341,10.80230198,193.23,193.2,42.97597799]
[1753127541515,10.80230198,193.24,193.21,0.71]
[1753127541709,10.80230198,193.24,193.22,0.71]
[1753127541910,10.80230198,193.23,193.2,42.97597799]
[1753127542106,0.06,193.25,193.2,42.97597799]
[1753127542307,0.06,193.25,193.21,11.51230198]
[1753127542619,0.06,193.25,193.21,0.96996208]
[1753127542937,10.80230198,193.22,193.21,26.0]
[1753127543117,1.40683053,193.25,193.22,37.94]
[1753127543118,10.80230198,193.24,193.22,37.94]
[1753127543637,0.06,193.25,193.23,37.92]
[1753127543833,0.06,193.25,193.21,26.0]
[1753127543834,10.80230198,193.24,193.21,26.0]
[1753127544030,10.80230198,193.22,193.21,26.0]
[1753127544221,10.80230198,193.23,193.21,63.92]
[1753127544826,10.80230198,193.23,193.2,26.0]
[1753127545026,10.80230198,193.23,193.22,37.9]
[1753127545743,11.50230198,193.23,193.2,37.9]
[1753127546029,10.80230198,193.21,193.2,37.9]
[1753127546718,0.646864,193.24,193.2,37.9]
[1753127546925,10.80230198,193.22,193.2,37.9]
[1753127547123,10.80230198,193.21,193.2,37.9]
[1753127547613,10.80230198,193.21,193.2,37.86]
[1753127548029,11.50230198,193.21,193.2,37.86]
[1753127548223,10.80230198,193.21,193.2,37.86]
[1753127548621,11.50230198,193.21,193.2,37.86]
[1753127548815,17.32498196,193.21,193.17,0.03]
[1753127549033,10.80230198,193.18,193.17,0.03]
[1753127549235,11.44936689,193.18,193.17,0.03]
[1753127549441,12.14936689,193.18,193.17,0.03]
[1753127550222,17.32588619,193.18,193.17,0.03]
[1753127550634,11.44936689,193.18,193.17,0.03]
[1753127550839,16.67882128,193.18,193.17,0.03]
[1753127551943,5.8765193,193.18,193.17,0.03]
[1753127552139,10.80230198,193.18,193.17,0.03]
[1753127552731,0.64703141,193.19,193.17,0.03]
[1753127552944,10.80230198,193.19,193.17,0.03]
[1753127553143,10.80230198,193.18,193.17,0.03]
[1753127553348,11.48230198,193.18,193.17,0.03]
[1753127554335,16.65882128,193.18,193.17,0.03]
[1753127555437,33.44350525,193.18,193.17,0.03]
[1753127555939,26.0,193.15,193.14,0.1]
[1753127556144,54.23415136,193.15,193.05,37.84]